{"text_format":"1","workbook":"xlsx","n_sheets":1,"sheets":["ESET"],"not_rendered":{"charts":0,"images":1,"macros":1,"external_links":0,"defined_names":2,"comments":0,"pivot_tables":0},"unopened":[],"bounds":{"document_bytes":16777216,"sheet_cells":100000,"rows_first":2000,"rows_last":500,"rows_between":2000,"halvings":0,"cell_chars":16384,"cell_head_chars":4096},"cells_cut":0,"cells_raw":0,"read":"whole","date_system":"1900"}

{"sheet":"ESET","index":0,"n_rows":34,"n_cols":12,"rows_kept":34,"cut":false,"hidden":false,"merged":[[3,1,3,3],[4,1,4,3],[5,1,5,3],[6,1,6,3],[7,1,7,3],[33,3,33,4],[29,3,29,4],[31,3,31,4],[10,1,10,3],[11,1,11,3],[12,1,12,3],[13,1,13,3],[12,5,12,6],[13,5,13,6],[27,2,27,4],[8,1,8,3],[9,1,9,3],[8,5,8,6],[7,5,7,6],[9,5,9,6],[10,5,10,6],[11,5,11,6],[1,8,6,11],[2,5,2,6],[3,5,3,6],[4,5,4,6],[5,5,5,6],[6,5,6,6]]}
[]
[null,"FECHA",{"$f":"TODAY()","v":"2016-08-19"},null,null,"NRO CUENTA AIR",null,null,"German Falletti\n Product Manager\n\nSan Nicolas 1450 - Rosario - Santa Fe\nTeléfono: 0341 4362836\nMóvil:  0341 155555481\nE-mail: gfalletti@air-computers.com"]
[null,null,null,null,"CLIENTE FINAL","REVENDEDOR"]
[null,"RAZON SOCIAL",null,null,"Datos Obligatorios","Datos Obligatorios"]
[null,"EMAIL",null,null,"Datos Obligatorios","Datos Obligatorios"]
[null,"RUBRO",null,null,"Datos Obligatorios","Datos Obligatorios"]
[null,"CUIT  ",null,null,"Datos Obligatorios","Datos Obligatorios"]
[null,"DIRECCION",null,null,"Datos Obligatorios","Datos Obligatorios"]
[null,"CIUDAD ",null,null,"Datos Obligatorios","Datos Obligatorios"]
[null,"PROVINCIA  ",null,null,"Datos Obligatorios","Datos Obligatorios"]
[null,"CODIGO POSTAL",null,null,"Datos Obligatorios","Datos Obligatorios"]
[null,"TELEFONO / FAX",null,null,"Datos Obligatorios","Datos Obligatorios"]
[null,"CONTACTO",null,null,"Datos Obligatorios","Datos Obligatorios"]
[null,"CONTRATO VIGENTE"]
[]
[]
[null,null,"Cantidad","Código Air","Descripción del producto","Unitario  Reseller U$S sin IVA","Total  Reseller U$S SIN IVA",null,"Unitario Usuario Final  U$S SIN IVA  (sólo en CYO)","Total Usuario Final U$S SIN IVA (sólo en CYO)",null,"Comisión   Reseller por CYO"]
[null,null,0,null,null,0,{"$f":"F18*C18","v":0},null,0,{"$f":"I18*C18","v":0},null,{"$f":"(J18-G18)-((J18-G18)*0)","v":0}]
[null,null,0,null,null,0,{"$f":"F19*C19","v":0},null,0,0,null,{"$f":"(J19-G19)-((J19-G19)*0)","v":0}]
[null,null,0,null,null,0,0,null,0,0,null,0]
[null,null,0,null,null,0,0,null,0,0,null,0]
[null,null,0,null,null,0,0,null,0,0,null,0]
[null,null,0,null,null,0,0,null,0,0,null,0]
[null,null,0,null,null,0,0,null,0,0,null,0]
[null,null,0,null,null,0,0,null,0,0,null,0]
[null,null,0,null,null,0,0,null,0,0,null,0]
[]
[null,null,"Seleccionar la opción correspondiente"]
[]
[null,null,"Cuenta y Orden",null,null,"SubTotal U$S S/IVA",{"$f":"SUM(G18:G28)","v":0},null,"SubTotal U$S S/IVA",{"$f":"SUM(J18:J28)","v":0},null,{"$f":"SUM(L18:L28)","v":0}]
[]
[null,null,"Forma de Pago","Contado, Transferencia o Cheque al día ",null,"IVA 21%",{"$f":"G30*0.21","v":0},null,"IVA 21%",{"$f":"J30*0.21","v":0},null,{"$f":"L30*0.21","v":0}]
[]
[null,null,"Valores",null,null,"Total U$S C/IVA",{"$f":"G30+G32","v":0},null,"Total U$S C/IVA",{"$f":"J30+J32","v":0},null,{"$f":"L30+L32","v":0}]